Cogmind - Beta 15 @@@ ROGUE MODE // 2025.06.16 @ 12:24:06 Player: H.1 Result: Self-destructed Performance ------------- Evolutions (1) 500 Regions Visited (2) 400 Robots Destroyed (4) 20 Value Destroyed (64) 64 Prototype IDs (0) 0 Alien Tech Used (0) 0 Bonus (200) 200 TOTAL SCORE: 1184 Bonus ------- Pacifist 200 Cogmind --------- Core Integrity 261/400 Matter 243/300 Energy 400/400 System Corruption 0% Temperature Danger (462) Movement Treading (160) Location -9/Materials Parts ------- > --- POWER (2) -------- Ion Engine Ion Engine > --- PROPULSION (2) --- Light Treads Light Treads > --- UTILITY (2) ------ Medium Storage Unit Tractor Beam > --- WEAPON (3) ------- Medium Laser Medium Laser Small Laser > --- INVENTORY (10) --- Small Storage Unit Small Storage Unit Peak State ------------ > --- POWER ------------ Ion Engine Ion Engine > --- PROPULSION ------- Light Treads Light Treads > --- UTILITY ---------- Small Storage Unit Tractor Beam > --- WEAPON ----------- Medium Laser Medium Laser Small Laser > --- INVENTORY -------- Small Storage Unit [Rating: 9] Favorites ----------- Power Ion Engine Engine Ion Engine Propulsion Light Treads Treads Light Treads Utility Small Storage Unit Device Tractor Beam Storage Small Storage Unit Weapon Medium Laser Energy Gun Medium Laser Build | -11 -10 -9 ------- Run | Yrd Mat Mat Slots Evolved 2 | . . 2 Power 1 | . . 1 Propulsion . | . . . Utility . | . . . Weapon 1 | . . 1 Parts Attached 11 | 6 2 3 Power 2 | 1 . 1 Engine 2 | 1 . 1 Core . | . . . Reactor . | . . . Propulsion 2 | 2 . . Treads 2 | 2 . . Leg . | . . . Wheel . | . . . Hover . | . . . Flight . | . . . Utility 4 | 1 2 1 Device 1 | . 1 . Storage 3 | 1 1 1 Processor . | . . . Hackware . | . . . Protection . | . . . Artifact . | . . . Weapon 3 | 2 . 1 Energy Gun 3 | 2 . 1 Energy Cannon . | . . . Ballistic Gun . | . . . Ballistic Cannon . | . . . Launcher . | . . . Special Weapon . | . . . Impact Weapon . | . . . Slashing Weapon . | . . . Piercing Weapon . | . . . Special Melee Weapon . | . . . Unidentified Prototypes . | . . . Parts Lost . | . . . Power . | . . . Propulsion . | . . . Utility . | . . . Weapon . | . . . Highest Loss Streak . | . . . To Critical Strikes . | . . . Average Backups 1 | 2 2 1 Power . | . 1 . Propulsion . | . . . Utility . | . . 1 Weapon . | 1 1 . Tool/Special . | . . . Unused Backups . | . . . Power . | . . . Propulsion . | . . . Utility . | . . . Weapon . | . . . Tool/Special . | . . . Average Slot Usage (%) 94 | . 90 99 Engine 17 | . 14 21 Treads 25 | . 28 22 Device 5 | . . 11 Storage 14 | . 18 11 Energy Gun 30 | . 28 33 Peak Build Rating 9 | 6 7 9 Average Rating 6 | 3 6 8 On Entrance 4 | . 6 7 Naked Turns . | . . . Heaviest Build 26 | 14 19 26 Greatest Support 40 | 40 40 40 Greatest Overweight (x) 1 | 1 . . Average Overweight (x) . | . . . Largest Inventory Capacity 10 | 8 8 10 Average Capacity 8 | 6 8 9 Most Carried 5 | 5 3 2 Average Carried 1 | 2 2 1 Final Capacity 10 | 8 8 10 Final Carried 3 | 2 3 2 Class Distribution -------------------- 61% | Mutant 38% | Gunner Dominant Class ---------------- Mutant | -10/Materials Gunner | -9/Materials Resources | -11 -10 -9 ----------- Run | Yrd Mat Mat Matter Collected 321 | 175 . 146 Remotely 135 | . . 135 Salvage Created 73 | . . 73 Parts 7 | . . 7 Haulers Intercepted . | . . . Recyclers Shooed 1 | . . 1 Parts Field Recycled . | . . . Retrieved Matter . | . . . Parts Self-Destructed . | . . . Prevented . | . . . Kills | -11 -10 -9 ------- Run | Yrd Mat Mat Combat Hostiles Destroyed 4 | . . 4 Guns 4 | . . 4 Classes Destroyed 2 | . . 2 Swarmer 3 | . . 3 Grunt 1 | . . 1 Best Kill Streak 3 | . . 3 Combat Bots Only 3 | . . 3 Max Kills in Single Turn 1 | . . 1 Gunslinging . | . . . Exploded . | . . . Melee . | . . . Uniques/NPCs Destroyed . | . . . Combat | -11 -10 -9 -------- Run | Yrd Mat Mat Hostile Shots Fired 31 | . . 31 Missed 8 | . . 8 Hits 23 | . . 23 Projectile 23 | . . 23 Damage Taken 311 | . . 311 Core 139 | . . 139 Absorbed by Shields . | . . . Core Remaining (%) 100 | 100 100 . Volleys Fired 13 | . . 13 Largest 3 | . . 3 Hottest 140 | . . 140 Shots Fired 39 | . . 39 Gun 39 | . . 39 Cannon . | . . . Launcher . | . . . Special . | . . . Kinetic . | . . . Thermal 39 | . . 39 Explosive . | . . . Electromagnetic . | . . . Robot Hit Streak 3 | . . 3 Robot Miss Streak 4 | . . 4 Penetration Max . | . . . Secondary Targets . | . . . Shots Hit Robots 16 | . . 16 Core Hits 7 | . . 7 Critical Kills . | . . . Critical Parts Destroyed . | . . . Critical Strikes 1 | . . 1 Burn 1 | . . 1 Melee Attacks . | . . . Impact . | . . . Slashing . | . . . Piercing . | . . . Sneak Attacks . | . . . Combat Hostiles . | . . . Follow-up Attacks . | . . . Damage Inflicted 215 | . . 215 Guns 211 | . . 211 Cannons . | . . . Explosions . | . . . Melee . | . . . Ramming 4 | . . 4 Kinetic . | . . . Thermal 211 | . . 211 Explosive . | . . . Electromagnetic . | . . . Impact . | . . . Slashing . | . . . Piercing . | . . . Highest Corruption . | . . . Average Corruption . | . . . Corruption Purged . | . . . Corruption Blocked . | . . . Overload Shots . | . . . Overflow Damage . | . . . Projectiles . | . . . Explosions . | . . . Melee . | . . . Knockbacks . | . . . Impact . | . . . Kinetic . | . . . Secondary . | . . . Self-Inflicted Damage . | . . . Shots . | . . . Rammed 2 | . . 2 Targets Rammed 2 | . . 2 Kicked . | . . . Crushed . | . . . Highest Temperature 582 | . . 582 Average Temperature 335 | . . 335 Received Heat Transfer 84 | . . 84 Effects 19 | . . 19 Shutdowns 5 | . . 5 Energy Bleed 1 | . . 1 Interference 3 | . . 3 Matter Decay 2 | . . 2 Damage (major) 6 | . . 6 Damage (core) 2 | . . 2 Siege Activations . | . . . Martial Activations . | . . . Shielding Activations . | . . . Robots Disrupted . | . . . Combat Hostiles . | . . . Robots Corrupted . | . . . Combat Hostiles . | . . . Parts Fried . | . . . Impact Corruptions . | . . . Robots Melted . | . . . Combat Hostiles . | . . . Parts Melted 1 | . . 1 Heat Transferred 667 | . . 667 Parts Sabotaged . | . . . Parts Stolen . | . . . Parts Stripped . | . . . Power Chain Reactions . | . . . Alert | -11 -10 -9 ------- Run | Yrd Mat Mat Maximum Alert Level . | . . . Low Security (%) 100 | 100 100 100 Level 1 . | . . . Level 2 . | . . . Level 3 . | . . . Level 4 . | . . . Level 5 . | . . . High Security . | . . . Max Security . | . . . Peak Influence 82 | . . 82 Initial . | . . . Average 11 | . . 32 Influence Increases 102 | . . 102 Destroy 0b10 Robot/C 80 | . . 80 Destroy Leader 20 | . . 20 Destroy Structure 2 | . . 2 Influence Decreases 40 | . . 40 Time Decay 40 | . . 40 Squads Dispatched 1 | . . 1 Investigation . | . . . Extermination . | . . . Reinforcement 1 | . . 1 Assault . | . . . Garrison . | . . . Intercept . | . . . Searches Triggered . | . . . Construction Impeded . | . . . Haulers Reinforced . | . . . Active Scanning Responses . | . . . Cargo Convoy Interrupts . | . . . Stealth | -11 -10 -9 --------- Run | Yrd Mat Mat Distress Signals . | . . . Communications Jammed . | . . . Distress Signals . | . . . Times Spotted 7 | . . 7 Peak Tracking Total 4 | . . 4 Tactical Retreats . | . . . Traps | -11 -10 -9 ------- Run | Yrd Mat Mat Traps Triggered . | . . . Indirectly . | . . . Trap Hack Attempts . | . . . Triggered . | . . . Disarmed . | . . . Reprogrammed . | . . . Reused . | . . . Traps Extracted . | . . . Installed . | . . . Triggered . | . . . Machines | -11 -10 -9 ---------- Run | Yrd Mat Mat Machines Disabled . | . . . Max in Single Turn . | . . . Machines Repaired . | . . . Machines Dismantled . | . . . Machines Sabotaged . | . . . Overloaded Fab Kills . | . . . Hacking | -11 -10 -9 --------- Run | Yrd Mat Mat Machines Accessed 1 | . 1 . Terminals 1 | . 1 . Fabricators . | . . . Repair Stations . | . . . Recycling Units . | . . . Scanalyzers . | . . . Garrison Access . | . . . Total Hacks 1 | . 1 . Successful 1 | . 1 . Failed . | . . . Catastrophic . | . . . Database Lockouts . | . . . Manual . | . . . Terminals 1 | . 1 . Fabricators . | . . . Repair Stations . | . . . Recycling Units . | . . . Scanalyzers . | . . . Garrison Access . | . . . Terminal Hacks 1 | . 1 . Record 1 | . 1 . Fabricator Hacks . | . . . Repair Station Hacks . | . . . Recycling Unit Hacks . | . . . Scanalyzer . | . . . Garrison Access Hacks . | . . . Unauthorized Hacks . | . . . Terminals . | . . . Fabricators . | . . . Repair Stations . | . . . Recycling Units . | . . . Scanalyzers . | . . . Garrison Access . | . . . Data Cores Recovered . | . . . Used . | . . . Hacking Detections 1 | . 1 . Full Trace Events . | . . . Feedback Events . | . . . Feedback Blocked . | . . . Robot Schematics Acquired . | . . . Robots Built . | . . . Authchips . | . . . Time . | . . . Total Robot Build Rating . | . . . Part Schematics Acquired . | . . . Parts Built . | . . . Authchips . | . . . Time . | . . . Total Part Build Rating . | . . . Parts Repaired . | . . . Time . | . . . Parts Recycled . | . . . Recycled Matter . | . . . Retrieved Matter . | . . . Retrieved Components . | . . . Parts Scanalyzed . | . . . Part Schematics Acquired . | . . . Parts Damaged . | . . . Bothacking | -11 -10 -9 ------------ Run | Yrd Mat Mat Used RIF Installer . | . . . Robots Hacked . | . . . Non-combat . | . . . Combat . | . . . Robot Hacks Applied . | . . . Relay Couplers Released . | . . . Fabnet Peak Effective % . | . . . Robots Rewired . | . . . Allies Hacked . | . . . Hacks Repelled . | . . . Allies | -11 -10 -9 -------- Run | Yrd Mat Mat Total Allies . | . . . Largest Group . | . . . Highest-Rated Group . | . . . Highest-Rated Ally . | . . . Total Orders . | . . . Ally Attacks . | . . . Total Damage . | . . . Kills . | . . . Allies Corrupted . | . . . Allies Melted . | . . . Intel | -11 -10 -9 ------- Run | Yrd Mat Mat Active Infowar (turns) . | . . . Robot Analysis Total . | . . . Derelict Logs Recovered . | . . . Drone Launches . | . . . Drone Recoveries . | . . . Exploration | -11 -10 -9 ------------- Run | Yrd Mat Mat Turns Passed 409 | 109 157 143 Spaces Moved 215 | 63 96 56 Core 18 | 18 . . Treads 197 | 45 96 56 Legs . | . . . Wheels . | . . . Hover . | . . . Flight . | . . . Fastest Speed 50 | 50 160 160 Average Speed 154 | 141 160 160 Slowest Speed 160 | 160 160 160 Overloaded Moves . | . . . Propulsion Burnouts . | . . . Robots Hopped . | . . . Potential Cave-ins . | . . . Cave-ins Triggered . | . . . Exploration Rate (%) 9 | 4 22 3 Regions Visited 2 Branch Regions . Pre-discovered Areas . | . . . Known Exits Taken . | . . . Unknown Exits Taken 2 | 1 1 . Scrap Searched . | . . . Spaces Dug . | . . . Terrain Destroyed . | . . . Melee . | . . . Projectile . | . . . AOE . | . . . Terrain Rammed . | . . . Walls Destroyed . | . . . Machines Disabled . | . . . Actions | -11 -10 -9 --------- Run | Yrd Mat Mat Total 260 | 83 99 78 Wait 10 | 7 . 3 Move 213 | 62 95 56 Hop . | . . . Pick Up 11 | 8 2 1 Fast Attach . | . . . Attach 9 | 6 1 2 Detach . | . . . Swap 2 | . 1 1 Drop . | . . . Fire 13 | . . 13 Melee . | . . . Ram . | . . . Kick . | . . . Crush 2 | . . 2 Escape Stasis . | . . . Rewire . | . . . Trap . | . . . Miscellaneous . | . . . Route ------- -11/Scrapyard -10/Materials -9/Materials History --------- Turn | Location | Event 25 | -11/Scrapyard | Discovered new exit (range 15) 110 | -11/Scrapyard | Entered Materials 200 | -10/Materials | Discovered new exit (range 8) 267 | -10/Materials | Entered another Materials area 267 | -9/Materials | Evolved 2 slots: Power x1, Weapon x1 410 | -9/Materials | Self-destructed Last Messages --------------- (Burn). 00401_ Power failure, Ion Engine shutdown. 00401_ U-05 Engineer builds a Door. 00402_ Overheating: Core damaged (-40). 00402_ Melted Aluminum Leg. 00402_ G-34 Mercenary overheating. 00403_ Power failure, Ion Engine shutdown. 00403_ Overheating: Matter decay (-33). 00403_ Acquired 11 matter. 00403_ G-34 Mercenary overheating. 00405_ Overheating: Med. Storage Unit damaged (-87). 00405_ Overheating: Lgt. Treads damaged (-46). 00407_ Overheating: System interference. 00407_ Med. Laser temporarily disabled. 00407_ Slammed into G-34 Mercenary. 00408_ Overheating: Core damaged (-48). 00408_ Slammed into G-34 Mercenary. 00409_ Overheating: Matter decay (-39). 00410_ G-34 Mercenary heat damages Aluminum Leg. Map ----- +----------------------------------------------------+ | ?????????????????????????????????????? | | ?????????????????????????????????????? | | ?????????????????????????????????????? | | ?????????????????????????????????????? | | ?????????????????????????????????????? | | ?????????????????????????????????????? | | ?????????????????????????????????????? | | ?????????????????????????????????????? | | ?????????????????????????????????????? | | ?????????????????????????????????????? | | ?????????????????????????????????????? | | ????????????????????????#####????????? | | ????????????????????????# #???????#? | | ????????????????????????# #?????? ?? | | ????????????????????????# #?????"" ? | | ????????????????????????# #???? "" ? | | ????????????????????????# #???? T"?? | | ????????????????????????# #??? ""?? | | ???????????????????????## ##? "" ? | | ???????????????????????# # ??? | | ???????????????????##### # ""????? | | ???????????????????# T =+"??????? | | ???????????????????# ### [#???????? | | ???????????????????????# %u*[#???????? | | ??????????????????????####/#####?????? | | ??????????????????????# @%= = #?????? | | ??????????????????????# g* #?????? | | ??????????????????????# #?????? | | ??????????????????????# """ #?????? | | ??????????????????????# """"" #?????? | | ??????????????????????# """"" #?????? | | ??????????????????????# """"" !#?????? | | ??????????????????????# """ #?????? | | ??????????????????????# #?????? | | ??????????????????????##########?????? | | ?????????????????????????????????????? | | ?????????????????????????????????????? | | ?????????????????????????????????????? | | ?????????????????????????????????????? | | ?????????????????????????????????????? | | ?????????????????????????????????????? | | ?????????????????????????????????????? | | ?????????????????????????????????????? | | ?????????????????????????????????????? | | ?????????????????????????????????????? | | ?????????????????????????????????????? | | ?????????????????????????????????????? | | ?????????????????????????????????????? | | ?????????????????????????????????????? | | ?????????????????????????????????????? | +----------------------------------------------------+ Best States ------------- Heat Dissipation 28 Energy Generation 15 Energy Capacity 400 Matter Stores 300 Matter Capacity 300 Sight Range 16 Terrain Scan Density 10 Evasion (%) 40 Recoil Reduction 2 Item Schematics ----------------- None Robot Schematics ------------------ None Fabricated ------------ Nothing Repaired ---------- Nothing Alien Tech Used ----------------- None Achievements -------------- Use The Force Challenges ------------ None Game ------ Seed MappingSupercompositeSpear Manual? 0 Play Time 00:07:58 Cumulative 5.4 hours Start 2025.06.16 @ 12:15:19 End 2025.06.16 @ 12:24:06 Sessions 1 Manual Loads 0 Difficulty Rogue Special Mode None Game No. 6 Rogue 5 Adventurer 1 Explorer 0 Win Type - Total 0 Types 0/0/0/0/0/0/0/0/0/0 Lore% 7 Gallery% 8 Achievement% 11 Wizard Run 0 Options --------- Layout 1 ASCII 0 Keyboard 0 Movement Arrows Keybinds 0 Fullscreen 1 Font 24/Smallcaps Map View 50x35 Zoom Use 0% Tactical HUD 1 Map Filters NONE Filters NONE Steam 1 RUN: 0ef5c17d-92ed-4cfa-b837-7d5b495747fc